bitfinex-derivatives/quotes_BTCF0:USTF0_20241221
["timestamp","ask_amount","ask_price","bid_price","bid_amount"]
[1734794123809,0.238753,97399.0,97398.0,0.2182]
[1734794124517,0.235753,97399.0,97398.0,0.2182]
[1734794124729,0.238753,97399.0,97398.0,0.2182]
[1734794125220,0.238753,97399.0,97398.0,0.001]
[1734794125413,0.051358,97389.0,97384.0,0.3608]
[1734794125818,0.56690598,97399.0,97384.0,0.3608]
[1734794126020,0.051356,97394.0,97384.0,0.3608]
[1734794126421,0.051356,97394.0,97374.0,0.3608]
[1734794126613,0.051356,97394.0,97385.0,0.05136]
[1734794126810,0.001,97389.0,97385.0,0.05136]
[1734794127424,0.052356,97394.0,97385.0,0.05136]
[1734794127621,0.053356,97394.0,97385.0,0.05136]
[1734794128215,0.052356,97394.0,97385.0,0.05136]
[1734794128410,0.003,97389.0,97385.0,0.05136]
[1734794128615,0.003,97389.0,97387.0,0.051359]
[1734794129328,0.006,97389.0,97387.0,0.051359]
[1734794129711,0.003,97389.0,97387.0,0.051359]
[1734794129917,0.003,97394.0,97389.0,0.051358]
[1734794130519,0.051354,97397.0,97389.0,0.051358]
[1734794130822,0.5452,97399.0,97383.0,0.3608]
[1734794131029,0.0177223,97399.0,97393.0,0.3608]
[1734794131228,0.00172422,97394.0,97393.0,0.412156]
[1734794131522,0.1,97400.0,97399.0,0.051353]
[1734794131729,0.06061595,97400.0,97399.0,0.051353]
[1734794132123,0.06061595,97400.0,97399.0,0.351353]
[1734794132314,0.06061595,97400.0,97399.0,0.051353]
[1734794132520,0.06061595,97400.0,97393.0,0.723]
[1734794132521,0.05134,97424.0,97416.0,0.051344]
[1734794132719,0.05134,97424.0,97420.0,0.3608]
[1734794133837,0.05334,97424.0,97420.0,0.3608]
[1734794134333,0.05334,97424.0,97420.0,0.3618]
[1734794134629,0.002,97424.0,97420.0,0.3618]
[1734794134830,0.005,97424.0,97420.0,0.3618]
[1734794135026,0.005,97424.0,97423.0,0.05134]
[1734794136029,0.05434,97424.0,97420.0,0.24551446]
[1734794136430,0.05134,97423.0,97420.0,0.24551446]
[1734794136729,0.051341,97422.0,97420.0,0.24451446]
[1734794137427,0.051341,97422.0,97420.0,0.24551446]
[1734794137636,0.051341,97422.0,97420.0,0.001]
[1734794137930,0.054341,97422.0,97420.0,0.001]
[1734794138733,0.0869,97421.0,97420.0,0.001]
[1734794139222,0.02120253,97422.0,97420.0,0.3618]
[1734794139423,0.003,97422.0,97420.0,0.413141]
[1734794139822,0.3608,97433.0,97420.0,0.3618]
[1734794140017,0.003,97421.0,97420.0,0.51428827]
[1734794140224,0.003,97421.0,97420.0,0.413142]
[1734794140622,0.051336,97432.0,97420.0,0.413142]
[1734794140822,0.003,97422.0,97420.0,0.413142]
[1734794141527,0.051336,97430.0,97424.0,0.24451446]
[1734794141728,0.051329,97444.0,97436.0,0.051333]
[1734794142037,0.01622294,97441.0,97436.0,0.051333]
[1734794142228,0.01622294,97441.0,97430.0,0.10114627]
[1734794142229,0.051332,97439.0,97430.0,0.10114627]
[1734794142529,0.051332,97439.0,97435.0,0.051333]
[1734794143724,0.051332,97439.0,97435.0,0.29584746]
[1734794143921,0.054332,97439.0,97435.0,0.29684746]
[1734794145028,0.003,97439.0,97435.0,0.29684746]
[1734794147739,0.003,97439.0,97435.0,0.24551446]
[1734794148130,0.003,97439.0,97435.0,0.001]
[1734794149236,0.003,97439.0,97436.0,0.24451446]
[1734794149632,0.003,97439.0,97437.0,0.051333]
[1734794149828,0.003,97439.0,97436.0,0.24451446]
[1734794150439,0.003,97439.0,97436.0,0.24551446]
[1734794150639,0.003,97439.0,97437.0,0.24451446]
[1734794150839,0.0672654,97441.0,97437.0,0.24451446]
[1734794151637,0.0672654,97441.0,97436.0,0.24551446]
[1734794151836,0.0159344,97441.0,97436.0,0.24551446]
[1734794152038,0.051332,97438.0,97436.0,0.24551446]
[1734794152540,0.051332,97438.0,97436.0,0.24451446]
[1734794152747,0.051332,97438.0,97437.0,0.001]
[1734794153839,0.051333,97436.0,97435.0,0.24451446]
[1734794154041,0.3608,97439.0,97431.0,0.24451446]
[1734794154233,0.051335,97432.0,97431.0,0.24451446]
[1734794154563,0.051335,97432.0,97431.0,0.09811446]
[1734794155734,0.051339,97425.0,97424.0,0.28195692]
[1734794156046,0.051343,97418.0,97417.0,0.36653613]
[1734794156244,0.051347,97410.0,97409.0,0.36653613]
[1734794156448,0.3608,97412.0,97410.0,0.051346]
[1734794156747,0.3608,97424.0,97416.0,0.051343]
[1734794156934,0.3608,97424.0,97417.0,0.051343]
[1734794157549,0.051342,97420.0,97410.0,0.146746]
[1734794158037,0.051342,97420.0,97411.0,0.051346]
[1734794158348,0.3608,97424.0,97417.0,0.051343]
[1734794158744,0.41214,97424.0,97416.0,0.3608]
[1734794158945,0.051341,97422.0,97416.0,0.3608]
[1734794159143,0.3608,97424.0,97411.0,0.051346]
[1734794159341,0.051342,97420.0,97411.0,0.051346]
[1734794160257,0.051342,97419.0,97411.0,0.051346]
[1734794161050,0.051342,97419.0,97410.0,0.0954]
[1734794161250,0.051342,97419.0,97416.0,0.3608]
[1734794162144,0.3608,97424.0,97416.0,0.3608]
[1734794162341,0.051341,97421.0,97416.0,0.3608]
[1734794162543,0.3608,97424.0,97416.0,0.3608]
[1734794163156,0.3608,97424.0,97416.0,0.001]
[1734794163352,0.051343,97417.0,97416.0,0.001]
[1734794163851,0.3608,97424.0,97416.0,0.001]
[1734794164052,0.051343,97417.0,97416.0,0.001]
[1734794164449,0.051343,97417.0,97403.0,0.36807592]
[1734794164752,0.05135,97404.0,97403.0,0.36807592]
[1734794164959,0.05135,97404.0,97403.0,0.00153979]
[1734794165652,0.3608,97412.0,97403.0,0.00153979]
[1734794166151,0.37608545,97412.0,97403.0,0.00153979]
[1734794166350,0.42743145,97412.0,97404.0,0.05135]
[1734794168251,0.42743145,97412.0,97403.0,0.45739979]
[1734794168252,0.37608545,97412.0,97405.0,0.051349]
[1734794168752,0.37708545,97412.0,97405.0,0.051349]
[1734794169344,0.37608545,97412.0,97405.0,0.051349]
[1734794169545,0.37708545,97412.0,97404.0,0.0967]
[1734794169754,0.051349,97406.0,97404.0,0.0967]
[1734794170551,0.42843145,97412.0,97404.0,0.0967]
[1734794171154,0.09187654,97410.0,97404.0,0.0967]
[1734794172357,0.051347,97411.0,97404.0,0.0967]
[1734794172760,0.3608,97412.0,97404.0,0.0967]
[1734794173355,0.09187654,97413.0,97411.0,0.3608]
[1734794173658,0.09187654,97413.0,97412.0,0.051346]
[1734794173852,0.09187654,97415.0,97414.0,0.051345]
[1734794174046,0.09187654,97415.0,97411.0,0.3608]
[1734794174047,0.14322154,97415.0,97411.0,0.3608]
[1734794174249,0.051346,97413.0,97406.0,0.01533263]
[1734794174452,0.09187654,97415.0,97404.0,0.0967]
[1734794174652,0.051349,97406.0,97404.0,0.0967]
[1734794175359,0.05135,97405.0,97403.0,0.00153979]
[1734794175552,0.3608,97404.0,97403.0,0.00153979]
[1734794176453,0.45267654,97404.0,97403.0,0.00353979]
[1734794177153,0.45267654,97404.0,97403.0,0.00253979]
[1734794178058,0.09187654,97404.0,97403.0,0.00153979]
[1734794179657,0.09187654,97409.0,97403.0,0.00153979]
[1734794180056,0.09187654,97409.0,97405.0,0.051349]
[1734794180255,0.09187654,97409.0,97403.0,0.00153979]
[1734794180256,0.09187654,97409.0,97407.0,0.051348]
[1734794181259,0.37554314,97413.0,97403.0,0.00153979]
[1734794181260,0.09187654,97412.0,97403.0,0.00153979]
[1734794181463,0.051348,97409.0,97403.0,0.00153979]
[1734794181652,0.051348,97409.0,97403.0,0.05288979]
[1734794182863,0.051348,97409.0,97404.0,0.05135]
[1734794183257,0.05135,97405.0,97403.0,0.18575861]
[1734794184067,0.09187654,97404.0,97403.0,0.00153979]
[1734794185353,0.09187654,97404.0,97402.0,0.18421882]
[1734794185563,0.051354,97397.0,97396.0,0.18421882]
[1734794185761,0.412154,97397.0,97396.0,0.18421882]
[1734794185963,0.051351,97403.0,97396.0,0.18421882]
[1734794186163,0.12250205,97404.0,97400.0,0.051352]
[1734794186868,0.15304172,97402.0,97400.0,0.051352]
[1734794188369,0.09193369,97402.0,97400.0,0.052352]
[1734794188966,0.09193369,97402.0,97400.0,0.053352]
[1734794189157,0.09193369,97402.0,97400.0,0.056352]
[1734794189473,0.09193369,97401.0,97400.0,0.056352]
[1734794190066,0.09193369,97401.0,97400.0,0.071792]
[1734794190268,0.09193369,97401.0,97400.0,0.08696092]
[1734794191466,0.09193369,97408.0,97407.0,0.051348]
[1734794191666,0.09193369,97408.0,97407.0,0.412148]
[1734794192869,0.09193369,97418.0,97415.0,0.051344]
[1734794193083,0.09193369,97418.0,97415.0,0.412144]
[1734794193474,0.09193369,97418.0,97417.0,0.051343]
[1734794193879,0.051343,97419.0,97417.0,0.051343]
[1734794195377,0.051343,97419.0,97417.0,0.23577724]
[1734794196083,0.051343,97419.0,97418.0,0.3608]
[1734794196688,0.051343,97419.0,97418.0,0.54523424]
[1734794197785,0.051343,97419.0,97418.0,0.3608]
[1734794199486,0.01506719,97423.0,97418.0,0.3608]
[1734794199687,0.09193369,97426.0,97418.0,0.3608]
[1734794199688,0.14327269,97426.0,97418.0,0.3608]
[1734794200391,0.15852097,97426.0,97418.0,0.3608]
[1734794201004,0.09193369,97423.0,97418.0,0.3618]
[1734794201582,0.09193369,97423.0,97421.0,0.051341]
[1734794201990,0.09193369,97423.0,97422.0,0.1808]
[1734794202187,0.15304172,97435.0,97428.0,0.051337]
[1734794202188,0.12257825,97429.0,97428.0,0.051337]
[1734794202491,0.12257825,97429.0,97428.0,0.412137]
[1734794204088,0.051332,97438.0,97428.0,0.3608]
[1734794204284,0.051332,97438.0,97436.0,0.051333]
[1734794204494,0.051332,97438.0,97437.0,0.3608]
[1734794204695,0.051329,97444.0,97437.0,0.3608]
[1734794204895,0.05133,97443.0,97439.0,0.051331]
[1734794205494,0.051332,97438.0,97437.0,0.3608]
[1734794206295,0.051329,97444.0,97437.0,0.3608]
[1734794206890,0.01424953,97450.0,97437.0,0.3608]
[1734794207091,0.12257825,97454.0,97440.0,0.10114627]
[1734794207299,0.051325,97452.0,97446.0,0.051328]
[1734794208386,0.051325,97452.0,97447.0,0.051327]
[1734794210292,0.051325,97452.0,97447.0,0.052327]
[1734794210997,0.0947,97455.0,97453.0,0.051324]
[1734794212203,0.0947,97455.0,97450.0,0.3608]
[1734794213407,0.0947,97455.0,97453.0,0.001]
[1734794213796,0.0947,97455.0,97452.0,0.051325]
[1734794214398,0.0947,97455.0,97453.0,0.051324]
[1734794217105,0.0947,97455.0,97453.0,0.052324]
[1734794220498,0.0947,97455.0,97453.0,0.051324]
[1734794220697,0.0947,97455.0,97453.0,0.052324]
[1734794221103,0.0947,97455.0,97453.0,0.051324]
[1734794221303,0.0947,97455.0,97453.0,0.052324]
[1734794222006,0.0947,97455.0,97453.0,0.001]
[1734794223412,0.0947,97455.0,97453.0,0.052324]
[1734794224516,0.0947,97455.0,97453.0,0.001]
[1734794224701,0.146024,97455.0,97453.0,0.001]
[1734794225910,0.051331,97440.0,97439.0,0.3608]
[1734794226808,0.051333,97437.0,97436.0,0.18403088]
[1734794227012,0.051333,97437.0,97432.0,0.24508272]
[1734794227013,0.3608,97441.0,97430.0,0.18403088]
[1734794227208,0.0893,97436.0,97430.0,0.18403088]
[1734794228215,0.3608,97449.0,97434.0,0.3608]
[1734794228611,0.12257825,97442.0,97434.0,0.3608]
[1734794228917,0.12257825,97442.0,97440.0,0.051331]
[1734794229907,0.3608,97449.0,97440.0,0.051331]
[1734794230214,0.3628,97449.0,97440.0,0.051331]
[1734794230923,0.002,97442.0,97440.0,0.051331]
[1734794231621,0.3628,97449.0,97440.0,0.052331]
[1734794231816,0.051328,97446.0,97440.0,0.052331]
[1734794232514,0.051328,97446.0,97444.0,0.1844066]
[1734794233623,0.052328,97446.0,97444.0,0.1844066]
[1734794234120,0.052328,97446.0,97444.0,0.001]
[1734794235125,0.0965,97445.0,97444.0,0.001]
[1734794235711,0.051334,97434.0,97433.0,0.1844066]
[1734794236520,0.051336,97430.0,97429.0,0.1844066]
[1734794236924,0.1826,97436.0,97429.0,0.1844066]
[1734794237124,0.001,97434.0,97432.0,0.051335]
[1734794237427,0.001,97434.0,97429.0,0.1844066]
[1734794237626,0.051334,97435.0,97429.0,0.1844066]
[1734794237826,0.001,97430.0,97429.0,0.1844066]
[1734794239224,0.122388,97441.0,97435.0,0.051333]
[1734794239625,0.122388,97442.0,97435.0,0.051333]
[1734794239825,0.173718,97442.0,97435.0,0.051333]
[1734794240323,0.003,97441.0,97435.0,0.051333]
[1734794240635,0.054331,97441.0,97435.0,0.051333]
[1734794240817,0.051331,97441.0,97435.0,0.051333]
[1734794241426,0.051333,97436.0,97431.0,0.1844066]
[1734794241921,0.051335,97433.0,97431.0,0.1844066]
[1734794242323,0.3608,97432.0,97431.0,0.1844066]
[1734794243638,0.3608,97432.0,97415.0,0.1844066]
[1734794243821,0.051343,97418.0,97415.0,0.1844066]
[1734794245020,0.051343,97418.0,97414.0,0.1844066]
[1734794245423,0.3608,97423.0,97414.0,0.1844066]
[1734794245624,0.3608,97423.0,97417.0,0.00453957]
[1734794245821,0.051339,97425.0,97417.0,0.01353957]
[1734794246027,0.1222342,97431.0,97417.0,0.01353957]
[1734794246222,0.05134,97423.0,97417.0,0.01353957]
[1734794246430,0.1222342,97428.0,97417.0,0.01553957]
[1734794246631,0.1222342,97428.0,97425.0,0.051339]
[1734794246929,0.1222342,97428.0,97427.0,0.051338]
[1734794247329,0.1222342,97428.0,97427.0,0.148838]
[1734794247718,0.051333,97436.0,97427.0,0.148838]
[1734794247921,0.051334,97434.0,97427.0,0.148838]
[1734794248324,0.051334,97434.0,97429.0,0.051337]
[1734794248934,0.051334,97434.0,97430.0,0.051336]
[1734794249329,0.051334,97434.0,97430.0,0.2357426]
[1734794250134,0.053334,97434.0,97430.0,0.2357426]
[1734794251027,0.002,97434.0,97432.0,0.051335]
[1734794252232,0.002,97434.0,97432.0,0.2357416]
[1734794253433,0.002,97434.0,97433.0,0.051335]
[1734794254725,0.051334,97436.0,97433.0,0.051335]
[1734794254931,0.002,97434.0,97433.0,0.051335]
[1734794255337,0.051334,97436.0,97433.0,0.051335]
[1734794255525,0.002,97434.0,97433.0,0.051335]
[1734794256430,0.051334,97435.0,97433.0,0.051335]
[1734794257939,0.002,97436.0,97435.0,0.051334]
[1734794258332,0.002,97436.0,97435.0,0.412134]
[1734794258533,0.051331,97440.0,97435.0,0.412134]
[1734794258849,0.051332,97439.0,97435.0,0.412134]
[1734794259238,0.002,97436.0,97435.0,0.412134]
[1734794259542,0.051332,97438.0,97436.0,0.1843762]
[1734794260941,0.051333,97436.0,97435.0,0.5451762]
[1734794261144,0.051333,97436.0,97435.0,0.1843762]
[1734794261447,0.412133,97436.0,97435.0,0.1843762]
[1734794262353,0.051335,97432.0,97422.0,0.5451762]
[1734794262644,0.051336,97432.0,97422.0,0.2357172]
[1734794262843,0.051336,97431.0,97422.0,0.2357172]
[1734794263144,0.3628,97436.0,97422.0,0.2357172]
[1734794263445,0.05134,97423.0,97422.0,0.1843762]
[1734794264145,0.05134,97423.0,97405.0,0.051349]
[1734794264146,0.051342,97420.0,97419.0,0.24508272]
[1734794265439,0.051342,97420.0,97419.0,0.25008272]
[1734794265844,0.17386945,97420.0,97419.0,0.014]
[1734794266342,0.12252745,97420.0,97419.0,0.014]
[1734794266740,0.12252745,97420.0,97419.0,0.2061]
[1734794267341,0.3608,97428.0,97419.0,0.2061]
[1734794267550,0.3608,97428.0,97421.0,0.051341]
[1734794268048,0.3608,97428.0,97426.0,0.051338]
[1734794269047,0.3608,97428.0,97424.0,0.1844398]
[1734794269247,0.051338,97427.0,97424.0,0.1844398]
[1734794269548,0.3608,97428.0,97426.0,0.003]
[1734794269755,0.3608,97428.0,97426.0,0.009]
[1734794270950,0.3608,97428.0,97426.0,0.006]
[1734794271149,0.3608,97428.0,97425.0,0.051339]
[1734794271764,0.3608,97428.0,97426.0,0.009]
[1734794272248,0.3608,97428.0,97427.0,0.051338]
[1734794273358,0.3608,97428.0,97426.0,0.006]
[1734794273551,0.412137,97428.0,97426.0,0.006]
[1734794273952,0.412137,97428.0,97426.0,0.009]
[1734794274454,0.412137,97428.0,97427.0,0.006]
[1734794275553,0.12252745,97436.0,97431.0,0.051336]
[1734794276054,0.12252745,97436.0,97427.0,0.003]
[1734794276055,0.12252745,97436.0,97427.0,0.009]
[1734794276360,0.12252745,97437.0,97432.0,0.051335]
[1734794277456,0.051332,97438.0,97432.0,0.23574727]
[1734794277946,0.002,97436.0,97432.0,0.23574727]
[1734794278348,0.002,97436.0,97434.0,0.051334]
[1734794278651,0.051332,97438.0,97434.0,0.051334]
[1734794278857,0.051332,97438.0,97433.0,0.1943]
[1734794278858,0.002,97437.0,97433.0,0.1943]
[1734794279048,0.002,97437.0,97435.0,0.051334]
[1734794279244,0.13505777,97441.0,97436.0,0.3608]
[1734794279456,0.12252745,97441.0,97437.0,0.051333]
[1734794280647,0.05133,97442.0,97437.0,0.051333]
[1734794281050,0.051332,97439.0,97436.0,0.60724272]
[1734794281255,0.051332,97438.0,97436.0,0.60588272]
[1734794281859,0.051332,97438.0,97436.0,0.3608]
[1734794282656,0.053332,97438.0,97436.0,0.3608]
[1734794283254,0.002,97438.0,97437.0,0.18436681]
[1734794283452,0.053332,97438.0,97437.0,0.18436681]
[1734794284753,0.051336,97430.0,97429.0,0.18436681]
[1734794286158,0.05134,97423.0,97422.0,0.18436681]
[1734794287155,0.051337,97429.0,97422.0,0.18436681]
[1734794287365,0.001,97430.0,97422.0,0.18436681]
[1734794287557,0.001,97430.0,97422.0,0.18836681]
[1734794287748,0.12252745,97429.0,97422.0,0.012]
[1734794288259,0.12252745,97429.0,97422.0,0.004]
[1734794288458,0.051341,97422.0,97417.0,0.18436681]
[1734794289062,0.051341,97422.0,97416.0,0.18436681]
[1734794289569,0.051343,97418.0,97416.0,0.18436681]
[1734794290064,0.051343,97418.0,97417.0,0.009]
[1734794290258,0.051343,97418.0,97417.0,0.19336681]
[1734794290654,0.051343,97418.0,97417.0,0.19836681]
[1734794291061,0.051343,97418.0,97417.0,0.18936681]
[1734794291263,0.051343,97418.0,97417.0,0.005]
[1734794291458,0.051348,97408.0,97407.0,0.18436681]
[1734794291657,0.412148,97408.0,97407.0,0.18436681]
[1734794292753,0.3608,97408.0,97397.0,0.18436681]
[1734794293060,0.051351,97403.0,97397.0,0.18436681]
[1734794293667,0.3618,97408.0,97397.0,0.18436681]
[1734794293668,0.3618,97408.0,97400.0,0.051352]
[1734794293965,0.3618,97408.0,97404.0,0.05135]
[1734794294460,0.001,97408.0,97404.0,0.05135]
[1734794295171,0.06364556,97412.0,97404.0,0.05135]
[1734794295763,0.06364556,97412.0,97403.0,0.18436681]
[1734794295764,0.051348,97408.0,97403.0,0.18436681]
[1734794296472,0.051348,97408.0,97402.0,0.3608]
[1734794296767,0.052348,97408.0,97404.0,0.009]
[1734794297268,0.001,97408.0,97406.0,0.051349]
[1734794298264,0.001,97408.0,97406.0,0.056349]
[1734794299562,0.3608,97413.0,97406.0,0.056349]
[1734794299765,0.051347,97410.0,97408.0,0.051348]
[1734794301462,0.052347,97410.0,97408.0,0.060348]
[1734794301858,0.052347,97410.0,97408.0,0.065348]
[1734794305469,0.001,97410.0,97408.0,0.065348]
[1734794306265,0.39297237,97413.0,97411.0,0.051346]
[1734794307357,0.051348,97408.0,97404.0,0.39040675]
[1734794307562,0.051348,97408.0,97406.0,0.051349]
[1734794309372,0.052348,97408.0,97406.0,0.051349]
[1734794309766,0.051348,97408.0,97406.0,0.051349]
[1734794309967,0.052348,97408.0,97406.0,0.060349]
[1734794310173,0.052348,97408.0,97406.0,0.065349]
[1734794310570,0.001,97408.0,97406.0,0.065349]
[1734794313274,0.12252745,97422.0,97420.0,0.051342]
[1734794313480,0.12252745,97422.0,97421.0,0.3608]
[1734794314976,0.17386145,97435.0,97434.0,0.051334]
[1734794316074,0.18086145,97435.0,97434.0,0.052334]
[1734794316475,0.058334,97435.0,97434.0,0.052334]
[1734794316678,0.058334,97435.0,97434.0,0.001]
[1734794317065,0.061334,97435.0,97434.0,0.001]
[1734794321082,0.18386145,97435.0,97434.0,0.001]
[1734794322477,0.061334,97435.0,97434.0,0.001]
[1734794325385,0.18386145,97435.0,97434.0,0.001]
[1734794328486,0.061334,97435.0,97434.0,0.001]
[1734794331491,0.18394018,97435.0,97434.0,0.001]
[1734794334187,0.061334,97435.0,97434.0,0.001]
[1734794340488,0.01,97435.0,97434.0,0.001]
[1734794342792,0.13274391,97435.0,97434.0,0.001]
[1734794344191,0.01,97435.0,97434.0,0.001]
[1734794345885,0.05990619,97435.0,97434.0,0.001]
[1734794346386,0.051334,97434.0,97429.0,0.18435588]
[1734794346591,0.051336,97430.0,97429.0,0.17342658]
[1734794347097,0.051336,97430.0,97427.0,0.24580784]
[1734794347302,0.051337,97429.0,97427.0,0.24580784]
[1734794348604,0.055337,97429.0,97427.0,0.24580784]
[1734794348905,0.051341,97421.0,97415.0,0.0928]
[1734794349600,0.01174473,97427.0,97415.0,0.0928]
[1734794349800,0.051342,97419.0,97415.0,0.0928]
[1734794350096,0.14339529,97419.0,97417.0,0.24580784]
[1734794350703,0.09205329,97419.0,97417.0,0.24580784]
[1734794351607,0.09205329,97419.0,97415.0,0.1038]
[1734794351608,0.051343,97417.0,97416.0,0.24580784]
[1734794352712,0.052343,97417.0,97416.0,0.007]
[1734794354118,0.052343,97417.0,97416.0,0.01]
[1734794363103,0.20576516,97417.0,97416.0,0.01]
[1734794364512,0.052343,97417.0,97416.0,0.01]
[1734794368412,0.14420381,97417.0,97416.0,0.01]
[1734794370009,0.052343,97417.0,97416.0,0.01]
[1734794372720,0.14431957,97417.0,97416.0,0.01]
[1734794374220,0.052343,97417.0,97416.0,0.01]
[1734794377115,0.17482132,97417.0,97416.0,0.01]
[1734794378216,0.12347832,97417.0,97416.0,0.01]
[1734794379625,0.17482132,97417.0,97416.0,0.01]
[1734794379826,0.052343,97417.0,97416.0,0.01]
[1734794382722,0.17482132,97417.0,97416.0,0.01]
[1734794383425,0.052343,97417.0,97416.0,0.01]
[1734794383825,1.4618,97417.0,97404.0,0.30753764]
[1734794384029,0.05135,97405.0,97404.0,0.30753764]
[1734794384914,0.05135,97405.0,97404.0,0.31353764]
[1734794385115,0.14735,97405.0,97404.0,0.31353764]
[1734794385419,0.1591592,97405.0,97404.0,0.31353764]
[1734794385619,0.21658136,97405.0,97404.0,0.009]
[1734794385813,0.21758136,97405.0,97404.0,0.015]
[1734794387117,0.0641592,97405.0,97404.0,0.015]
[1734794392027,0.051358,97389.0,97388.0,0.00154004]
[1734794393330,0.052358,97389.0,97388.0,0.01054004]
[1734794394220,0.053358,97389.0,97388.0,0.01654004]
[1734794395126,0.053358,97389.0,97388.0,0.015]
[1734794396319,0.052358,97389.0,97388.0,0.006]
[1734794396529,0.052358,97389.0,97388.0,0.005]
[1734794397523,0.06347278,97389.0,97388.0,0.005]
[1734794398729,0.18580563,97389.0,97388.0,0.005]
[1734794399534,0.05137,97367.0,97363.0,0.3608]
[1734794399924,0.3608,97378.0,97363.0,0.3608]
[1734794400130,0.3608,97378.0,97366.0,0.05137]
[1734794400525,0.051364,97377.0,97366.0,0.05137]
[1734794400720,0.001,97367.0,97366.0,0.05137]
[1734794400933,0.01218773,97389.0,97377.0,0.051364]
[1734794401126,0.051359,97388.0,97378.0,0.239563]
[1734794401636,0.09170939,97387.0,97378.0,0.239563]
[1734794402025,0.05136,97386.0,97378.0,0.239563]
[1734794403133,0.05336,97386.0,97378.0,0.245563]
[1734794403434,0.002,97386.0,97382.0,0.3608]
[1734794403631,0.002,97386.0,97383.0,0.051361]
[1734794403832,0.002,97386.0,97382.0,0.3608]
[1734794404030,0.05136,97385.0,97383.0,0.1002]
[1734794404335,0.051363,97379.0,97378.0,0.1022]
[1734794405531,0.052363,97379.0,97378.0,0.0962]
[1734794406638,0.053363,97379.0,97378.0,0.1022]
[1734794406848,0.06446832,97379.0,97378.0,0.006]
[1734794408923,0.051375,97357.0,97356.0,0.30753764]
[1734794409330,0.051375,97357.0,97352.0,0.3608]
[1734794409528,0.00011222,97356.0,97352.0,0.3608]
[1734794410436,0.05138,97348.0,97342.0,0.30753764]
[1734794410926,0.05138,97348.0,97336.0,0.36663843]
[1734794410927,0.05138,97348.0,97336.0,0.0001023]
[1734794411336,0.051377,97352.0,97338.0,0.051385]
[1734794412328,0.009,97348.0,97336.0,0.0001023]
[1734794412735,0.05138,97349.0,97336.0,0.0001023]
[1734794412928,0.07131414,97416.0,97376.0,0.051364]
[1734794412929,0.3608,97409.0,97376.0,0.051364]
[1734794413128,0.57485289,97421.0,97391.0,0.3608]
[1734794413335,0.2572009,97416.0,97412.0,0.3608]
[1734794413635,0.2572009,97416.0,97414.0,0.051344]
[1734794413835,0.57485289,97421.0,97414.0,0.051344]
[1734794414032,0.3608,97432.0,97423.0,0.05134]
[1734794414350,0.051331,97440.0,97430.0,0.051336]
[1734794414539,0.2572009,97435.0,97433.0,0.3608]
[1734794415831,0.2572009,97434.0,97430.0,0.001]
[1734794416036,0.3085369,97431.0,97430.0,0.001]
[1734794416839,0.2572009,97431.0,97430.0,0.001]
[1734794417141,0.2572009,97431.0,97423.0,0.3608]
[1734794417333,0.2572009,97424.0,97423.0,0.3608]
[1734794418342,0.2572009,97424.0,97423.0,0.3618]
[1734794419744,0.2602009,97424.0,97423.0,0.3618]
[1734794420242,0.10618589,97424.0,97423.0,0.3608]
[1734794420550,0.11518589,97424.0,97423.0,0.3618]
[1734794420842,0.06134,97424.0,97423.0,0.001]
[1734794421034,0.16452589,97424.0,97423.0,0.001]
[1734794421543,0.16652589,97424.0,97423.0,0.001]
[1734794421933,0.16652589,97424.0,97412.0,0.3608]
[1734794421934,0.15752589,97424.0,97412.0,0.3608]
[1734794422134,0.06234,97424.0,97423.0,0.002]
[1734794422536,0.16552589,97424.0,97423.0,0.002]
[1734794422939,0.16152589,97424.0,97423.0,0.001]
[1734794423545,0.15652589,97424.0,97412.0,0.3608]
[1734794423746,0.10318589,97414.0,97412.0,0.3608]
[1734794424242,0.10318589,97414.0,97404.0,0.41215]
[1734794425345,0.10418589,97414.0,97404.0,0.41915]
[1734794425647,0.10418589,97414.0,97404.0,0.3678]
[1734794425851,0.10418589,97414.0,97410.0,0.051347]
[1734794426048,0.10418589,97414.0,97413.0,0.3608]
[1734794426347,0.10418589,97414.0,97404.0,0.3678]
[1734794426641,0.10318589,97408.0,97404.0,0.3708]
[1734794427247,0.10318589,97408.0,97404.0,0.3678]
[1734794427963,0.10418589,97408.0,97404.0,0.3678]
[1734794428149,0.10418589,97408.0,97404.0,0.41915]
[1734794428337,0.10418589,97408.0,97405.0,0.051349]
[1734794429842,0.10318589,97408.0,97405.0,0.051349]
[1734794430440,0.10318589,97408.0,97405.0,0.052349]
[1734794431448,0.10318589,97408.0,97406.0,0.051349]
[1734794432645,0.051348,97409.0,97406.0,0.051349]
[1734794432646,0.01909364,97409.0,97406.0,0.051349]
[1734794432843,0.01095919,97418.0,97406.0,0.052349]
[1734794433150,0.051346,97412.0,97406.0,0.052349]
[1734794433347,0.001,97408.0,97406.0,0.051349]
[1734794433547,0.002,97408.0,97406.0,0.051349]
[1734794434051,0.051347,97411.0,97406.0,0.051349]
[1734794434252,0.051347,97411.0,97407.0,0.051348]
[1734794434644,0.059343,97418.0,97413.0,0.051345]
[1734794434938,0.008,97418.0,97416.0,0.051344]
[1734794435548,0.005,97418.0,97416.0,0.051344]
[1734794435850,0.051335,97432.0,97416.0,0.051344]
[1734794436050,0.051335,97432.0,97430.0,0.051336]
[1734794437047,0.056335,97432.0,97430.0,0.051336]
[1734794437251,0.060335,97432.0,97430.0,0.051336]
[1734794437751,0.012,97432.0,97430.0,0.052336]
[1734794439242,0.007,97432.0,97430.0,0.052336]
[1734794439441,0.011,97432.0,97430.0,0.052336]
[1734794441854,0.051336,97431.0,97430.0,0.001]
[1734794442148,0.412136,97431.0,97430.0,0.001]